bitfinex-derivatives/quotes_SOLF0:USTF0_20240906
["timestamp","ask_amount","ask_price","bid_price","bid_amount"]
[1725629988683,43.34,132.59,132.51,3.7737]
[1725629988883,43.34,132.56,132.52,1.38669905]
[1725629989085,86.68,132.54,132.45,1.38689431]
[1725629989285,47.1151,132.47,132.41,3.7765]
[1725629989491,43.34,132.47,132.42,1.38768295]
[1725629989682,43.34,132.47,132.34,43.34]
[1725629989887,3.7756,132.45,132.35,1.38793013]
[1725629990187,43.34,132.47,132.34,43.34]
[1725629990188,43.34,132.47,132.36,44.72793013]
[1725629990385,47.1151,132.47,132.37,1.38808223]
[1725629990586,47.15017424,132.54,132.38,44.72808223]
[1725629990587,43.34,132.5,132.38,44.72808223]
[1725629990787,47.1141,132.5,132.44,3.7757]
[1725629990988,43.34,132.52,132.44,3.86261649]
[1725629991189,43.34,132.52,132.4,44.7266]
[1725629991394,43.34,132.52,132.41,1.38756365]
[1725629991587,43.34,132.52,132.42,1.38756365]
[1725629991893,47.1137,132.52,132.46,3.7751]
[1725629992390,43.34,132.52,132.4,44.7266]
[1725629992588,43.34,132.52,132.41,1.38749724]
[1725629992589,43.34,132.5,132.41,1.38749724]
[1725629992789,43.34,132.5,132.42,1.38749724]
[1725629993089,3.7746,132.49,132.41,3.75292377]
[1725629993281,43.34,132.45,132.34,43.34]
[1725629993594,47.1156,132.45,132.39,3.777]
[1725629993787,47.1156,132.45,132.24,3.68269096]
[1725629993788,43.34,132.45,132.25,8.32587734]
[1725629993983,1.3405,132.44,132.32,43.34]
[1725629994188,1.3405,132.44,132.34,43.34]
[1725629994387,1.3218,132.46,132.35,1.38823205]
[1725629994585,43.34,132.47,132.36,44.72823205]
[1725629994793,43.34,132.47,132.4,3.7769]
[1725629995291,43.34,132.47,132.35,1.3361]
[1725629995497,43.34,132.45,132.36,2.77637069]
[1725629995694,43.34,132.42,132.37,1.38818606]
[1725629995995,43.34,132.47,132.36,1.38818463]
[1725629995996,43.34,132.4,132.36,1.38818463]
[1725629996598,44.7477,132.4,132.36,1.38818463]
[1725629996896,2.6993,132.41,132.37,0.05017473]
[1725629996897,1.2994,132.41,132.37,0.05017473]
[1725629997192,0.05511589,132.39,132.37,0.05017473]
[1725629997696,43.39511589,132.39,132.37,0.05017473]
[1725629997889,43.39511589,132.39,132.36,1.38818463]
[1725629997890,43.34,132.39,132.36,1.38818463]
[1725629998385,3.7778,132.37,132.36,1.38818463]
[1725629998591,47.1178,132.37,132.36,1.38818463]
[1725629998789,5.0722,132.37,132.36,1.38818463]
[1725629999101,1.2944,132.37,132.27,1.3361]
[1725629999399,43.34,132.35,132.28,1.3888638]
[1725629999585,3.779,132.33,132.27,1.3361]
[1725629999784,3.779,132.33,132.23,8.33061375]
[1725629999785,43.34,132.29,132.23,8.33061375]
[1725629999995,43.34,132.27,132.23,8.33061375]
[1725630000294,43.34,132.26,132.23,8.33061375]
[1725630000494,44.7506,132.26,132.23,8.33061375]
[1725630000689,1.2944,132.28,132.23,8.33061375]
[1725630000993,43.34,132.27,132.23,8.33061375]
[1725630001795,43.34,132.25,132.23,4.61753326]
[1725630002198,3.7815,132.24,132.23,2.49003326]
[1725630002399,3.7815,132.24,132.12,43.34]
[1725630002400,3.87662637,132.24,132.12,43.34]
[1725630002702,3.7814,132.25,132.12,43.34]
[1725630002895,3.7814,132.25,132.15,43.34]
[1725630003294,3.7815,132.24,132.15,43.34]
[1725630003592,43.34,132.26,132.13,43.34]
[1725630003788,43.34,132.26,132.18,3.783]
[1725630003987,0.04783537,132.21,132.19,0.05499854]
[1725630005097,43.34,132.24,132.19,0.05499854]
[1725630005298,43.34,132.26,132.19,0.05499854]
[1725630005495,43.34,132.23,132.03,7.5748]
[1725630005691,0.05087768,132.21,132.09,43.34]
[1725630005890,0.05087768,132.21,132.11,43.34]
[1725630006098,0.05087768,132.21,132.04,2.4173]
[1725630006298,0.05087768,132.21,132.14,3.7843]
[1725630006601,0.05087768,132.21,132.12,3.83637845]
[1725630006896,0.05087768,132.21,132.2,3.7827]
[1725630007099,0.05087768,132.21,132.2,7.63194585]
[1725630007392,1.2944,132.28,132.22,3.782]
[1725630007797,1.2944,132.28,132.18,47.11241988]
[1725630007996,44.6344,132.28,132.21,3.7824]
[1725630008196,0.0562805,132.22,132.2,3.81669889]
[1725630008399,0.0562805,132.22,132.18,43.34]
[1725630008599,0.0562805,132.22,132.2,43.34]
[1725630008795,1.2944,132.28,132.14,2.4073]
[1725630008992,1.2944,132.28,132.2,43.34]
[1725630009403,0.05729803,132.22,132.21,3.73609704]
[1725630009704,0.05729803,132.22,132.17,43.34]
[1725630009705,3.74744376,132.28,132.19,3.82724903]
[1725630009996,43.34,132.29,132.16,43.34]
[1725630010190,3.781,132.26,132.19,3.7827]
[1725630010399,43.34,132.24,132.14,2.4073]
[1725630010702,43.34,132.24,132.15,3.70054398]
[1725630010900,43.34,132.24,132.14,1.4101]
[1725630011098,43.34,132.22,132.12,1.333]
[1725630011295,43.34,132.2,132.1,3.7323148]
[1725630011497,43.34,132.2,132.09,43.34]
[1725630011697,1.3981,132.21,132.16,3.7837]
[1725630011891,1.3981,132.21,132.12,43.34]
[1725630012403,43.34,132.27,132.14,43.34]
[1725630012599,43.34,132.29,132.16,43.34]
[1725630012794,47.19550624,132.29,132.16,43.34]
[1725630012995,43.34,132.27,132.16,43.34]
[1725630013198,3.7814,132.25,132.18,3.783]
[1725630013393,43.34,132.29,132.16,43.34]
[1725630013705,3.7814,132.25,132.19,3.7829]
[1725630014006,2.7478,132.3,132.15,1.2955]
[1725630014007,43.34,132.29,132.17,43.34]
[1725630014299,2.7478,132.3,132.19,43.34]
[1725630014701,43.34,132.35,132.22,43.34]
[1725630014895,43.34,132.35,132.16,4.82364801]
[1725630014896,44.7231,132.35,132.24,43.34]
[1725630015198,44.7231,132.35,132.23,1.3267]
[1725630015199,1.3831,132.35,132.26,43.34]
[1725630015406,1.3831,132.35,132.3,3.7796]
[1725630015603,44.7231,132.35,132.24,49.49220037]
[1725630015794,1.3831,132.35,132.24,49.49220037]
[1725630016001,0.04950948,132.32,132.26,43.34]
[1725630016207,0.04950948,132.32,132.28,43.34]
[1725630016398,7.89663277,132.43,132.31,43.34]
[1725630016593,7.89663277,132.43,132.33,43.34]
[1725630016802,7.89663277,132.43,132.28,0.05225931]
[1725630016803,43.34,132.39,132.28,0.05225931]
[1725630017002,43.34,132.36,132.28,3.83033046]
[1725630017206,43.34,132.39,132.25,43.34]
[1725630017408,43.34,132.39,132.28,43.34]
[1725630017409,47.1173,132.39,132.28,43.34]
[1725630017599,43.34,132.39,132.28,43.34]
[1725630017800,43.34,132.39,132.25,3.70924831]
[1725630018003,43.34,132.39,132.31,0.05273666]
[1725630018406,43.34,132.41,132.33,3.7789]
[1725630018707,43.34,132.41,132.3,3.70406643]
[1725630018898,3.7765,132.42,132.35,3.7782]
[1725630019207,43.34,132.45,132.33,43.34]
[1725630019400,43.34,132.42,132.36,0.04858694]
[1725630019603,43.34,132.44,132.36,0.04858694]
[1725630019803,46.0636,132.46,132.36,0.04858694]
[1725630020001,3.7771,132.4,132.36,0.04858694]
[1725630020205,43.34,132.42,132.33,3.69386031]
[1725630020500,43.34,132.42,132.26,43.34]
[1725630020501,3.777,132.4,132.34,3.7785]
[1725630020706,43.34,132.44,132.37,0.04860747]
[1725630021003,6.59247641,132.46,132.37,0.04860747]
[1725630021004,46.0636,132.46,132.37,3.77270815]
[1725630021200,3.7759,132.44,132.38,3.7774]
[1725630021400,46.0636,132.46,132.37,3.77682067]
[1725630021601,1.3831,132.46,132.36,43.34]
[1725630021805,43.34,132.49,132.4,0.05575224]
[1725630022002,47.1307991,132.51,132.4,0.05575224]
[1725630022208,0.05229296,132.43,132.4,43.39575224]
[1725630022409,2.6632,132.52,132.4,47.12853233]
[1725630022613,2.6632,132.52,132.42,43.34]
[1725630022805,5.1121,132.52,132.45,3.7755]
[1725630023004,43.34,132.49,132.37,1.2915]
[1725630023511,1.3363,132.48,132.37,1.2915]
[1725630023711,43.34,132.46,132.37,1.2915]
[1725630024018,43.34,132.46,132.42,0.0563127]
[1725630024212,1.2767,132.47,132.42,0.0563127]
[1725630025414,3.7755,132.46,132.42,0.0563127]
[1725630025612,43.34,132.51,132.42,0.0563127]
[1725630025914,3.7742,132.5,132.44,3.7756]
[1725630026110,44.6314,132.53,132.42,0.0563127]
[1725630026517,43.34,132.51,132.4,47.20031346]
[1725630026923,43.34,132.51,132.4,3.86031346]
[1725630027222,7.5383,132.68,132.48,43.34]
[1725630027410,3.7723,132.57,132.51,3.7737]
[1725630027614,43.34,132.61,132.51,3.7737]
[1725630027820,43.34,132.58,132.49,1.3689]
[1725630028017,3.7731,132.54,132.49,1.3689]
[1725630028231,43.34,132.51,132.46,0.05449475]
[1725630028411,3.7738,132.51,132.46,0.05449475]
[1725630028614,43.34,132.52,132.46,0.05449475]
[1725630029019,1.2914,132.53,132.41,43.34]
[1725630029216,1.2914,132.53,132.4,3.86680173]
[1725630029217,43.34,132.5,132.35,1.2756]
[1725630029416,43.39439977,132.5,132.37,43.34]
[1725630029623,43.39439977,132.5,132.48,0.04799979]
[1725630030021,3.7747,132.49,132.48,0.04799979]
[1725630030216,46.0049,132.52,132.41,3.79924781]
[1725630030525,46.0049,132.52,132.39,43.34]
[1725630031021,46.0049,132.52,132.47,0.05723597]
[1725630031224,3.7746,132.49,132.47,0.05723597]
[1725630031623,3.7746,132.49,132.35,1.2756]
[1725630031624,43.34,132.49,132.35,1.2756]
[1725630031818,2.6649,132.52,132.35,1.2756]
[1725630031819,43.34,132.44,132.35,1.2756]
[1725630032427,2.6649,132.52,132.35,44.6156]
[1725630032628,43.34,132.48,132.37,43.34]
[1725630032927,43.34,132.48,132.41,3.7764]
[1725630033223,43.34,132.46,132.38,0.05236325]
[1725630033414,43.34,132.44,132.38,0.05236325]
[1725630033719,43.34,132.46,132.33,43.34]
[1725630033921,43.34,132.46,132.33,47.09707732]
[1725630034123,43.34,132.46,132.4,0.05750259]
[1725630034328,43.34,132.42,132.29,1.3887]
[1725630034625,47.13219372,132.47,132.29,5.10874873]
[1725630034626,43.34,132.39,132.29,5.10874873]
[1725630034824,3.7781,132.36,132.29,3.7799]
[1725630035129,43.34,132.39,132.26,43.34]
[1725630035723,43.34,132.39,132.31,0.05574902]
[1725630036127,43.34,132.32,132.21,44.6435]
[1725630036624,43.34,132.34,132.23,43.34]
[1725630036823,43.34,132.37,132.25,43.34]
[1725630037025,47.07818609,132.37,132.26,3.7809]
[1725630037230,43.34,132.32,132.21,44.6435]
[1725630037428,43.34,132.28,132.03,7.5746]
[1725630037627,43.34,132.23,132.12,43.34]
[1725630038228,43.34,132.23,132.12,47.20448684]
[1725630039330,3.76578529,132.25,132.12,43.34]
[1725630039526,43.34,132.27,132.14,43.34]
[1725630039730,43.34,132.27,132.13,43.34]
[1725630040030,43.34,132.25,132.13,43.34]
[1725630040234,3.7817,132.24,132.13,43.34]
[1725630040423,3.7817,132.24,132.1,3.83574616]
[1725630040424,43.34,132.23,132.1,3.83574616]
[1725630040732,3.7832,132.19,132.13,3.7846]
[1725630041231,0.05460742,132.2,132.13,3.7846]
[1725630041422,0.05460742,132.2,132.1,43.34]
[1725630041629,43.34,132.23,132.12,43.34]
[1725630042026,43.34,132.23,132.12,47.03085425]
[1725630042228,0.04899976,132.16,132.12,43.34]
[1725630042432,0.04899976,132.16,132.12,47.17544519]
[1725630042734,43.34,132.23,132.09,43.34]
[1725630042929,43.34,132.21,132.09,43.34]
[1725630043234,43.34,132.19,132.07,43.34]
[1725630043431,0.0520516,132.15,132.07,43.34]
[1725630043939,48.44207573,132.19,132.07,43.34]
[1725630044234,3.7842,132.15,132.09,3.7857]
[1725630044428,5.29145493,132.19,132.02,43.34]
[1725630044633,43.34,132.11,132.0,1.3181]
[1725630044835,43.34,132.11,132.0,5.1298076]
[1725630045238,43.34,132.07,131.98,7.90057684]
[1725630045632,43.34,132.06,131.98,7.90057684]
[1725630045835,43.34,132.08,131.98,7.90057684]
[1725630046238,43.34,132.14,132.03,43.34]
[1725630046532,43.34,132.17,132.05,43.34]
[1725630046734,44.7516,132.19,132.07,43.34]
[1725630047526,43.34,132.17,132.07,43.34]
[1725630047731,43.34,132.15,132.04,43.34]
[1725630047932,3.7853,132.11,132.05,3.7869]
[1725630048132,43.34,132.15,132.01,2.7525]
[1725630048429,0.05096074,132.11,132.02,43.34]
[1725630048634,0.05096074,132.11,132.08,0.04985134]
[1725630049033,43.34,132.1,132.01,2.7525]
[1725630049339,43.34,132.08,131.97,47.06112622]
[1725630049736,43.34,132.08,131.95,43.34]
[1725630050134,3.7872,132.05,131.95,47.20651821]
[1725630050340,0.05026053,132.04,131.95,47.20651821]
[1725630050745,3.7875,132.04,131.95,43.34]
[1725630050946,3.7875,132.04,131.95,47.14579086]
[1725630051145,43.34,132.06,131.95,43.34]
[1725630051352,43.34,132.06,131.98,0.05100229]
[1725630051543,3.74478604,132.08,131.98,0.05100229]
[1725630051744,43.34,132.09,131.98,0.05100229]
[1725630052043,0.05605146,132.02,131.98,43.34]
[1725630052345,43.34,132.13,132.0,43.34]
[1725630052346,3.7863,132.08,132.0,43.34]
[1725630052547,3.82397863,132.1,132.0,43.34]
[1725630052737,43.34,132.08,131.99,1.3138]
[1725630053045,0.04776363,132.01,131.96,3.8421664]
[1725630053243,0.04776363,132.01,131.94,43.34]
[1725630053749,43.34,132.07,131.96,43.34]
[1725630053936,47.1275,132.04,131.94,43.34]
[1725630054140,43.34,132.02,131.91,43.34]
[1725630054348,0.05488969,131.99,131.93,43.34]
[1725630054550,0.05488969,131.99,131.97,3.7891]
[1725630054747,0.05488969,131.99,131.93,47.08147124]
[1725630054938,0.05488969,131.99,131.98,3.789]
[1725630055258,0.05488969,131.99,131.89,1.3514]
[1725630055259,43.34,132.03,131.89,1.3514]
[1725630055442,43.34,132.03,131.93,3.75018555]
[1725630055646,3.7882,132.01,131.95,3.7897]
[1725630055943,43.34,132.03,131.92,3.74033459]
[1725630056144,43.34,132.01,131.83,3.8023]
[1725630056349,0.05246787,131.99,131.87,43.34]
[1725630056850,43.34,131.98,131.83,3.7587]
[1725630057049,43.34,131.98,131.88,3.7918]
[1725630057050,3.7902,131.94,131.88,3.7918]
[1725630057247,43.34,131.98,131.88,3.85044564]
[1725630057440,3.83869492,132.0,131.81,1.3363]
[1725630057441,43.34,131.96,131.84,43.34]
[1725630057646,43.34,131.96,131.81,1.3363]
[1725630057647,43.34,131.94,131.81,44.6763]
[1725630057948,0.05186954,131.92,131.83,43.34]
[1725630058144,0.05186954,131.92,131.87,3.792]
[1725630058347,43.34,131.96,131.89,0.0517569]
[1725630058541,43.34,131.94,131.89,0.0517569]
[1725630058854,0.05471883,131.91,131.89,0.0517569]
[1725630059154,43.39471883,131.91,131.82,1.0516]
[1725630059343,43.34,131.89,131.83,1.3119]
[1725630059545,43.39471883,131.91,131.79,43.34]
[1725630059747,3.7915,131.9,131.84,3.7928]
[1725630059951,43.34,131.91,131.77,1.3119]
[1725630060154,43.34,131.88,131.77,2.3652]
[1725630060456,3.78069943,131.94,131.77,47.2212682]
[1725630060652,42.22242961,132.2,131.74,43.34]
[1725630060653,3.7909,131.92,131.84,3.793]
[1725630060948,0.05797673,131.85,131.79,43.34]
[1725630061163,3.7931,131.84,131.76,3.7953]
[1725630061456,43.34,131.84,131.7,2.719]
[1725630061642,43.34,131.82,131.7,6.50921206]
[1725630061947,43.34,131.82,131.68,43.34]
[1725630062155,43.34,131.82,131.69,2.74438827]
[1725630062343,43.34,131.79,131.7,1.39488827]
[1725630062545,0.0521684,131.77,131.7,43.34]
[1725630062742,0.0521684,131.77,131.68,43.34]
[1725630063048,43.3921684,131.77,131.69,1.3985]
[1725630063245,43.3921684,131.77,131.7,1.3495]
[1725630063454,43.34,131.77,131.65,3.85015735]
[1725630063752,43.34,131.77,131.65,1.3495]
[1725630064054,43.34,131.77,131.64,43.34]
[1725630064055,43.34,131.75,131.64,3.75445758]
[1725630064242,43.34,131.75,131.63,43.34]
[1725630064243,43.38824471,131.75,131.65,2.74484772]
[1725630064445,0.04824471,131.75,131.65,3.77534521]
[1725630064650,43.38824471,131.75,131.66,1.0533]
[1725630064852,43.34,131.75,131.67,1.3801]
[1725630065155,43.78,131.69,131.61,1.3985]
[1725630065350,43.78,131.71,131.6,43.78]
[1725630065542,43.78,131.69,131.58,43.78]
[1725630065860,43.78,131.69,131.56,1.0513]
[1725630065861,3.83307104,131.7,131.6,43.78]
[1725630066159,3.83307104,131.7,131.64,43.78]
[1725630066354,3.83307104,131.7,131.62,43.78]
[1725630066547,43.83468981,131.72,131.61,1.3801]
[1725630066745,43.78,131.67,131.61,1.3801]
[1725630067060,3.92226996,131.72,131.56,3.801]
[1725630067246,43.78,131.64,131.57,2.4314]
[1725630067450,43.78,131.64,131.54,1.3242]
[1725630067752,43.78,131.64,131.48,1.3801]
[1725630067753,43.78,131.57,131.48,1.3801]
[1725630067958,43.78,131.57,131.45,43.78]
[1725630068155,43.78,131.55,131.49,1.39709229]
[1725630068355,43.78,131.53,131.41,1.3695]
[1725630068553,43.78,131.51,131.42,1.39767354]
[1725630068751,47.55411996,131.53,131.42,1.39767354]
[1725630068947,0.04901045,131.6,131.41,1.3978335]
[1725630069155,43.78,131.51,131.43,3.8048]
[1725630069350,43.78,131.47,131.42,1.3695]
[1725630069555,3.75284447,131.65,131.38,1.3242]
[1725630069749,43.78,131.44,131.38,1.3242]
[1725630069951,43.78,131.51,131.38,47.58709504]
[1725630070157,43.78,131.51,131.41,43.78]
[1725630070359,0.05096594,131.46,131.43,43.78]
[1725630070551,43.78,131.61,131.45,43.78]
[1725630070861,43.78,131.65,131.53,43.78]
[1725630071157,43.78,131.65,131.54,2.6855]
[1725630071355,43.78,131.63,131.54,2.6855]
[1725630071654,43.78,131.63,131.5,43.78]
[1725630071856,43.78,131.65,131.54,43.78]
[1725630072162,0.05050784,131.6,131.57,43.78]
[1725630072349,0.05050784,131.6,131.59,43.78]
[1725630072554,0.05050784,131.6,131.59,47.5802]
[1725630072756,0.27958237,131.66,131.59,43.78]
[1725630073056,0.27958237,131.66,131.61,3.7994]
[1725630073265,4.06878585,131.66,131.6,1.3517]
[1725630073452,43.78,131.61,131.58,0.05603823]
[1725630073653,43.78,131.61,131.5,3.71817437]
[1725630073849,43.78,131.61,131.49,43.78]
[1725630074062,43.78,131.56,131.47,2.696]
[1725630074258,43.78,131.56,131.46,43.78]
[1725630074658,43.78,131.56,131.5,3.8027]
[1725630074860,43.78,131.58,131.46,47.54566792]
[1725630075255,43.78,131.56,131.41,2.6648]
[1725630075563,43.78,131.58,131.46,43.78]
[1725630075757,43.78,131.58,131.46,3.72273375]
[1725630075966,43.78,131.58,131.43,1.3828]
[1725630075967,3.70677592,131.61,131.48,43.78]
[1725630076163,3.7120952,131.73,131.48,43.78]
[1725630076164,43.78,131.6,131.48,43.78]
[1725630076558,0.05028337,131.53,131.5,43.78]
[1725630076861,0.05028337,131.53,131.47,45.1005]
[1725630077264,3.8022,131.52,131.47,1.3205]
[1725630077560,3.8022,131.52,131.44,5.1873]
[1725630077561,43.78,131.52,131.44,1.3828]
[1725630077763,3.8019,131.54,131.46,3.804]
[1725630077952,43.78,131.56,131.45,43.78]
[1725630078265,43.78,131.58,131.45,43.78]
[1725630078458,43.78,131.63,131.52,43.78]
[1725630078658,43.78,131.65,131.54,43.78]
[1725630078963,43.78,131.67,131.56,43.78]
[1725630079463,0.05733534,131.61,131.4,55.26552291]
[1725630079665,43.83733534,131.61,131.5,43.78]
[1725630079864,43.83733534,131.61,131.54,3.8016]
[1725630080059,0.05733534,131.61,131.6,0.04956248]
[1725630080266,43.78,131.63,131.6,0.04956248]
[1725630080459,43.78,131.66,131.6,0.04956248]
[1725630080661,43.78,131.64,131.51,43.78]
[1725630080858,0.05075896,131.62,131.51,43.78]
[1725630081163,0.05075896,131.62,131.54,43.78]
[1725630081355,43.78,131.68,131.57,43.78]
[1725630081561,43.78,131.63,131.41,1.0]
[1725630081764,43.78,131.56,131.47,3.86613083]
[1725630081964,43.78,131.52,131.47,3.86613083]
[1725630082267,43.78,131.48,131.47,3.86613083]
[1725630082467,3.76006883,131.56,131.47,3.86613083]
[1725630082468,43.78,131.5,131.47,3.86613083]
[1725630082767,43.78,131.54,131.33,43.78]
[1725630082768,43.78,131.48,131.37,43.78]
[1725630083069,3.8034,131.48,131.37,43.78]
[1725630083257,43.8308067,131.5,131.37,43.78]
[1725630083465,43.8308067,131.5,131.39,43.78]
[1725630083662,43.78,131.48,131.38,1.39826822]
[1725630083870,43.78,131.48,131.36,43.78]
[1725630084067,43.78,131.48,131.41,3.8053]
[1725630084365,43.78,131.48,131.43,0.05014847]
[1725630084768,0.04920418,131.46,131.43,0.05014847]
[1725630084962,0.04920418,131.46,131.27,43.78]
[1725630085271,0.04920418,131.46,131.37,43.78]
[1725630085571,43.78,131.41,131.23,3.89156111]
[1725630085767,3.81164444,131.49,131.23,3.89156111]
[1725630085768,3.81164444,131.49,131.29,43.78]
[1725630086073,43.78,131.43,131.31,43.78]
[1725630086263,43.78,131.43,131.32,1.39890625]
[1725630086770,43.78,131.41,131.35,3.8071]
[1725630086973,43.78,131.41,131.28,43.78]
[1725630087376,43.78,131.41,131.23,3.89156111]
[1725630087377,47.5857,131.41,131.29,1.39893348]
[1725630087679,43.78,131.39,131.26,43.78]
[1725630087969,0.05406408,131.39,131.3,1.39893348]
[1725630088162,43.78,131.32,131.15,3.71896482]
[1725630088366,43.78,131.29,131.08,8.39360091]
[1725630088570,43.78,131.29,131.17,43.78]
[1725630088772,43.78,131.27,131.09,1.39977157]
[1725630088972,43.78,131.22,131.1,1.39977157]
[1725630089164,43.78,131.22,131.1,45.17977157]
[1725630089369,47.5915,131.2,131.12,3.8137]
[1725630089566,47.5915,131.2,130.99,8.39360091]
[1725630089567,43.78,131.17,130.99,8.39360091]
[1725630089766,43.78,131.13,131.0,1.40126011]
[1725630089964,43.78,131.11,131.0,1.40126011]
[1725630090163,43.78,131.09,131.01,1.40126011]
[1725630090467,43.78,131.09,130.87,51.4222]
[1725630090468,43.78,131.14,131.03,43.78]
[1725630090669,43.78,131.17,131.05,43.78]
[1725630090971,43.78,131.28,131.02,1.40205665]
[1725630090972,43.78,131.21,131.1,43.78]
[1725630091163,47.55868943,131.28,131.1,47.64296537]
[1725630091369,43.78,131.28,131.15,43.78]
[1725630091575,43.78,131.3,131.17,43.78]
[1725630091767,43.78,131.34,131.19,43.78]
[1725630091966,43.78,131.27,131.15,43.78]
[1725630092166,43.78,131.27,131.16,1.40059193]
[1725630092377,43.78,131.29,131.16,3.78974826]
[1725630092572,43.78,131.31,131.25,0.05713697]
[1725630092773,43.78,131.29,131.25,0.05713697]
[1725630092969,43.78,131.27,131.03,8.41181868]
[1725630093164,43.78,131.17,131.06,43.78]
[1725630093474,43.78,131.17,131.07,1.40094395]
[1725630093673,43.78,131.21,131.16,3.8126]
[1725630093981,43.78,131.26,131.13,43.78]
[1725630094161,43.78,131.26,131.07,43.78]
[1725630094162,43.78,131.28,131.14,1.40088554]
[1725630094371,43.78,131.28,131.17,43.78]
[1725630094765,43.78,131.26,131.13,43.78]
[1725630095066,0.05420565,131.2,131.14,1.40085755]
[1725630095679,0.05420565,131.2,130.93,43.78]
[1725630095680,43.78,131.17,131.07,3.82568373]
[1725630095873,0.05420565,131.2,131.09,43.78]
[1725630096278,0.05420565,131.2,131.19,3.8118]
[1725630096469,47.50425526,131.34,131.14,43.78]
[1725630096470,3.71891692,131.27,131.14,43.78]
[1725630096669,27.40108293,131.56,131.21,43.78]
[1725630096874,43.78,131.31,131.18,43.78]
[1725630097179,43.78,131.31,131.13,3.76838777]
[1725630097474,43.78,131.34,131.2,43.78]
[1725630097689,0.28010202,131.38,131.24,43.78]
[1725630097977,0.28010202,131.38,131.27,43.78]
[1725630098289,0.28010202,131.38,131.33,43.78]
[1725630098573,0.28010202,131.38,131.37,47.5866]
[1725630098777,0.28010202,131.38,131.37,3.8066]
[1725630098975,0.28010202,131.38,131.33,3.76190699]
[1725630099169,0.28010202,131.38,131.36,43.78]
[1725630099478,43.78,131.51,131.37,1.39835508]
[1725630099678,27.40108293,131.76,131.37,1.39835508]
[1725630099679,43.78,131.46,131.37,1.39835508]
[1725630099979,43.78,131.46,131.2,51.4026]
[1725630099980,0.05532577,131.37,131.33,43.78]
[1725630100171,0.05532577,131.37,131.12,8.39846218]
[1725630100367,0.05532577,131.37,131.34,1.39870857]
[1725630100573,0.05532577,131.37,131.27,43.78]
[1725630100574,43.78,131.4,131.3,3.8083]
[1725630100773,43.78,131.4,131.27,43.78]
[1725630100976,43.78,131.38,131.28,1.39922039]
[1725630101176,43.78,131.38,131.13,43.78]
[1725630101480,0.05828692,131.37,131.27,43.78]
[1725630101779,0.05828692,131.37,131.31,43.78]
[1725630101978,4.1509,131.39,131.33,43.78]
[1725630102176,4.1509,131.39,131.34,3.8073]
[1725630102381,4.1509,131.39,131.3,43.78]
[1725630102578,0.04926859,131.35,131.3,43.78]
[1725630102974,0.04926859,131.35,131.29,3.81276711]
[1725630103484,47.5877,131.33,131.31,0.05566512]
[1725630103680,43.78,131.35,131.31,0.05566512]
[1725630104183,0.05788869,131.33,131.31,0.05566512]
[1725630104384,43.83788869,131.33,131.21,3.84434498]
[1725630104584,43.83788869,131.33,131.22,1.3998332]
[1725630104883,0.05788869,131.33,131.24,43.78]
[1725630105384,3.83291935,131.38,131.2,43.78]
[1725630105385,43.78,131.38,131.26,43.78]
[1725630105587,4.1509,131.39,131.27,1.39946919]